Cogmind - Beta 11 X6 @@@ ROGUE MODE // 2021.08.15 @ 11:21:06 Player: Olga Result: Self-destructed Performance ------------- Evolutions (1) 500 Regions Visited (4) 800 Robots Destroyed (14) 70 Value Destroyed (249) 249 Prototype IDs (0) 0 Alien Tech Used (0) 0 Bonus (0) 0 TOTAL SCORE: 1619 Bonus ------- None Cogmind --------- Core Integrity 94/400 Matter 300/300 Energy 100/100 System Corruption 0% Temperature Cool (0) Movement Walking (280) Ox2 Location -9/Mines Parts ------- > --- POWER (1) -------- (None) > --- PROPULSION (2) --- Aluminum Leg > --- UTILITY (4) ------ Large Storage Unit Utility Shielding > --- WEAPON (2) ------- (None) > --- INVENTORY (15) --- Ion Engine Light Ion Engine Light Ion Engine Light Ion Engine Aluminum Leg Experimental Sensor Array Propulsion Shielding Improved EM Shotgun Light Assault Rifle Light Assault Rifle Light Cannon Rocket Launcher Makeshift Hammer Peak State ------------ > --- POWER ------------ Improved Ion Engine > --- PROPULSION ------- Aluminum Leg Wheel > --- UTILITY ---------- Large Storage Unit Utility Shielding Light Armor Plating > --- WEAPON ----------- Light Assault Rifle Light Assault Rifle > --- INVENTORY -------- Ion Engine Light Ion Engine Light Ion Engine Aluminum Leg Aluminum Leg Experimental Sensor Array Propulsion Shielding Improved EM Shotgun Small Laser Light Assault Rifle Heavy Assault Rifle Light Cannon Makeshift Hammer [Rating: 11] Favorites ----------- Power Light Ion Engine Engine Light Ion Engine Propulsion Aluminum Leg Leg Aluminum Leg Wheel Wheel Utility Large Storage Unit Storage Large Storage Unit Protection Light Armor Plating Weapon Light Assault Rifle Ballistic Gun Light Assault Rifle Build | -11 -10 -10 -9 -9 ------- Run | Scr Mat Min Mat Min Slots Evolved 2 | . . . 2 . Power . | . . . . . Propulsion . | . . . . . Utility 2 | . . . 2 . Weapon . | . . . . . Parts Attached 11 | . 1 2 4 4 Power 1 | . . . 1 . Engine 1 | . . . 1 . Core . | . . . . . Reactor . | . . . . . Propulsion 5 | . . 1 1 3 Treads . | . . . . . Leg 4 | . . . 1 3 Wheel 1 | . . 1 . . Hover . | . . . . . Flight . | . . . . . Utility 3 | . 1 1 1 . Device . | . . . . . Storage 1 | . . 1 . . Processor . | . . . . . Hackware . | . . . . . Protection 2 | . 1 . 1 . Artifact . | . . . . . Weapon 2 | . . . 1 1 Energy Gun . | . . . . . Energy Cannon . | . . . . . Ballistic Gun 2 | . . . 1 1 Ballistic Cannon . | . . . . . Launcher . | . . . . . Special Weapon . | . . . . . Impact Weapon . | . . . . . Slashing Weapon . | . . . . . Piercing Weapon . | . . . . . Special Melee Weapon . | . . . . . Unidentified Prototypes . | . . . . . Parts Lost 10 | . . . 1 9 Power 2 | . . . 1 1 Propulsion 4 | . . . . 4 Utility 1 | . . . . 1 Weapon 3 | . . . . 3 Highest Loss Streak 5 | . . . 1 5 Average Slot Usage (%) 88 | . 90 100 80 73 Engine 12 | . 14 14 9 10 Leg 17 | . 28 17 11 19 Wheel 8 | . . 10 11 1 Storage 12 | . 14 14 11 11 Protection 13 | . 4 14 16 12 Ballistic Gun 24 | . 28 28 22 17 Naked Turns . | . . . . . Heaviest Build 33 | 10 13 28 33 33 Greatest Support 20 | 20 20 20 10 20 Greatest Overweight (x) 3 | . . 2 3 3 Average Overweight (x) 1 | . . 1 2 1 Largest Inventory Capacity 15 | . 8 15 15 15 Average Capacity 13 | . 8 13 15 15 Most Carried 15 | . 7 11 15 15 Average Carried 11 | . 6 9 13 14 Final Capacity 15 | 8 8 15 15 15 Final Carried 15 | 6 6 11 15 13 Class Distribution -------------------- 80% | Mutant 19% | Scavenger-Mutant Dominant Class ---------------- Mutant | -10/Materials Mutant | -10/Mines Mutant | -9/Materials Scavenger-Mutant | -9/Mines Resources | -11 -10 -10 -9 -9 ----------- Run | Scr Mat Min Mat Min Matter Collected 407 | 200 . 56 73 78 Remotely . | . . . . . Salvage Created 337 | . . 37 195 105 Parts 24 | . . 5 8 11 Haulers Intercepted . | . . . . . Recyclers Shooed . | . . . . . Parts Field Recycled . | . . . . . Retrieved Matter . | . . . . . Parts Self-Destructed . | . . . . . Prevented . | . . . . . Kills | -11 -10 -10 -9 -9 ------- Run | Scr Mat Min Mat Min Combat Hostiles Destroyed 14 | . . 3 4 7 Guns 14 | . . 3 4 7 Classes Destroyed 2 | . . 1 1 . Swarmer 10 | . . 3 . 7 Grunt 4 | . . . 4 . Best Kill Streak 4 | . . 3 3 4 Combat Bots Only 4 | . . 3 3 4 Max Kills in Single Turn 2 | . . 2 1 1 Gunslinging 1 | . . 1 . . Exploded . | . . . . . Melee . | . . . . . Uniques/NPCs Destroyed . | . . . . . Combat | -11 -10 -10 -9 -9 -------- Run | Scr Mat Min Mat Min Damage Taken 1404 | . . 125 355 924 Core 322 | . . 16 66 240 Absorbed by Shields . | . . . . . Core Remaining (%) 96 | 100 . 93 . . Volleys Fired 62 | . . 13 24 25 Largest 2 | . . 2 2 2 Hottest 43 | . . 40 40 43 Shots Fired 122 | . . 26 48 48 Gun 122 | . . 26 48 48 Cannon . | . . . . . Launcher . | . . . . . Special . | . . . . . Kinetic 122 | . . 26 48 48 Thermal . | . . . . . Explosive . | . . . . . Electromagnetic . | . . . . . Robot Hit Streak 10 | . . 4 10 4 Robot Miss Streak 4 | . . 4 2 4 Penetration Max . | . . . . . Secondary Targets 2 | . . 1 . 1 Max Gunslinging Chain 1 | . . 1 . 1 Shots Hit Robots 76 | . . 15 34 27 Core Hits 25 | . . 6 10 9 Critical Kills . | . . . . . Critical Parts Destroyed . | . . . . . Critical Strikes . | . . . . . Melee Attacks . | . . . . . Impact . | . . . . . Slashing . | . . . . . Piercing . | . . . . . Sneak Attacks . | . . . . . Combat Hostiles . | . . . . . Follow-up Attacks . | . . . . . Damage Inflicted 652 | . . 118 279 255 Guns 648 | . . 118 279 251 Cannons . | . . . . . Explosions . | . . . . . Melee . | . . . . . Ramming 4 | . . . . 4 Kinetic 648 | . . 118 279 251 Thermal . | . . . . . Explosive . | . . . . . Electromagnetic . | . . . . . Impact . | . . . . . Slashing . | . . . . . Piercing . | . . . . . Highest Corruption . | . . . . . Average Corruption . | . . . . . Corruption Purged . | . . . . . Overload Shots . | . . . . . Overflow Damage . | . . . . . Projectiles . | . . . . . Explosions . | . . . . . Melee . | . . . . . Knockbacks . | . . . . . Impact . | . . . . . Kinetic . | . . . . . Secondary . | . . . . . Self-Inflicted Damage . | . . . . . Shots . | . . . . . Rammed . | . . . . . Targets Rammed 1 | . . . . 1 Kicked 1 | . . . . 1 Crushed . | . . . . . Highest Temperature 13 | . . 12 13 3 Average Temperature 5 | . . 6 6 1 Received Heat Transfer 240 | . . . 240 . Siege Activations . | . . . . . Robots Corrupted . | . . . . . Combat Hostiles . | . . . . . Parts Fried . | . . . . . Impact Corruptions . | . . . . . Robots Melted . | . . . . . Combat Hostiles . | . . . . . Parts Melted . | . . . . . Heat Transferred . | . . . . . Parts Sabotaged . | . . . . . Parts Stolen . | . . . . . Parts Stripped . | . . . . . Power Chain Reactions . | . . . . . Missiles Intercepted . | . . . . . Alert | -11 -10 -10 -9 -9 ------- Run | Scr Mat Min Mat Min Peak Influence 178 | . . 70 150 178 Initial 58 | . . . . 58 Average 71 | . . 36 101 124 Maximum Alert Level . | . . . . . Low Security (%) 100 | . 100 100 100 100 Level 1 . | . . . . . Level 2 . | . . . . . Level 3 . | . . . . . Level 4 . | . . . . . Level 5 . | . . . . . High Security . | . . . . . Max Security . | . . . . . Squads Dispatched 4 | . 2 . 2 . Investigation 2 | . 1 . 1 . Extermination . | . . . . . Reinforcement 2 | . 1 . 1 . Assault . | . . . . . Garrison . | . . . . . Intercept . | . . . . . Construction Impeded . | . . . . . Haulers Reinforced . | . . . . . Active Scanning Responses . | . . . . . Cargo Convoy Interrupts . | . . . . . Stealth | -11 -10 -10 -9 -9 --------- Run | Scr Mat Min Mat Min Distress Signals 1 | . . . 1 . Communications Jammed . | . . . . . Distress Signals . | . . . . . Times Spotted 20 | . . 5 6 9 Peak Tracking Total 4 | . 1 3 4 4 Tactical Retreats . | . . . . . Traps | -11 -10 -10 -9 -9 ------- Run | Scr Mat Min Mat Min Traps Triggered 1 | . 1 . . . Indirectly . | . . . . . Trap Hack Attempts . | . . . . . Triggered . | . . . . . Disarmed . | . . . . . Reprogrammed . | . . . . . Reused . | . . . . . Traps Extracted . | . . . . . Installed . | . . . . . Triggered . | . . . . . Machines | -11 -10 -10 -9 -9 ---------- Run | Scr Mat Min Mat Min Machines Disabled . | . . . . . Max in Single Turn . | . . . . . Machines Sabotaged . | . . . . . Garrisons Compromised . | . . . . . Overloaded Fab Kills . | . . . . . Fab Network Shutdowns . | . . . . . Hacking | -11 -10 -10 -9 -9 --------- Run | Scr Mat Min Mat Min Machines Accessed 3 | . 2 . 1 . Terminals 2 | . 2 . . . Fabricators . | . . . . . Repair Stations . | . . . . . Recycling Units 1 | . . . 1 . Scanalyzers . | . . . . . Garrison Access . | . . . . . Total Hacks 7 | . 6 . 1 . Successful 2 | . 1 . 1 . Failed 5 | . 5 . . . Catastrophic . | . . . . . Database Lockouts . | . . . . . Manual 7 | . 6 . 1 . Terminals 6 | . 6 . . . Fabricators . | . . . . . Repair Stations . | . . . . . Recycling Units 1 | . . . 1 . Scanalyzers . | . . . . . Garrison Access . | . . . . . Terminal Hacks . | . . . . . Fabricator Hacks . | . . . . . Repair Station Hacks . | . . . . . Recycling Unit Hacks . | . . . . . Scanalyzer . | . . . . . Garrison Access Hacks . | . . . . . Unauthorized Hacks 2 | . 1 . 1 . Terminals 1 | . 1 . . . Botnet 1 | . 1 . . . Fabricators . | . . . . . Repair Stations . | . . . . . Recycling Units 1 | . . . 1 . Tunnel 1 | . . . 1 . Scanalyzers . | . . . . . Garrison Access . | . . . . . Data Cores Recovered . | . . . . . Used . | . . . . . Hacking Detections 2 | . 2 . . . Full Trace Events . | . . . . . Feedback Events . | . . . . . Feedback Blocked . | . . . . . Robot Schematics Acquired . | . . . . . Robots Built . | . . . . . Matter . | . . . . . Time . | . . . . . Total Robot Build Rating . | . . . . . Part Schematics Acquired . | . . . . . Parts Built . | . . . . . Matter . | . . . . . Time . | . . . . . Total Part Build Rating . | . . . . . Parts Repaired . | . . . . . Time . | . . . . . Parts Recycled . | . . . . . Recycled Matter . | . . . . . Retrieved Matter . | . . . . . Retrieved Components . | . . . . . Parts Scanalyzed . | . . . . . Part Schematics Acquired . | . . . . . Parts Damaged . | . . . . . Bothacking | -11 -10 -10 -9 -9 ------------ Run | Scr Mat Min Mat Min Used RIF Installer . | . . . . . Robots Hacked . | . . . . . Non-combat . | . . . . . Combat . | . . . . . Robot Hacks Applied . | . . . . . Relay Couplers Released . | . . . . . Robots Rewired . | . . . . . Allies Hacked . | . . . . . Hacks Repelled . | . . . . . Allies | -11 -10 -10 -9 -9 -------- Run | Scr Mat Min Mat Min Total Allies . | . . . . . Largest Group . | . . . . . Highest-Rated Group . | . . . . . Highest-Rated Ally . | . . . . . Total Orders . | . . . . . Ally Attacks . | . . . . . Total Damage . | . . . . . Kills . | . . . . . Allies Corrupted . | . . . . . Allies Melted . | . . . . . Intel | -11 -10 -10 -9 -9 ------- Run | Scr Mat Min Mat Min Robot Analysis Total . | . . . . . Derelict Logs Recovered 1 | . . 1 . . Drone Launches . | . . . . . Drone Recoveries . | . . . . . Exploration | -11 -10 -10 -9 -9 ------------- Run | Scr Mat Min Mat Min Turns Passed 1417 | . 34 731 268 384 Spaces Moved 963 | 1 27 608 158 169 Core . | . . . . . Treads . | . . . . . Legs 275 | 1 27 119 . 128 Wheels 688 | . . 489 158 41 Hover . | . . . . . Flight . | . . . . . Fastest Speed 110 | 120 120 110 110 125 Average Speed 125 | 120 120 111 119 182 Slowest Speed 280 | 120 120 120 125 280 Overloaded Moves . | . . . . . Propulsion Burnouts . | . . . . . Robots Hopped . | . . . . . Cave-ins Triggered . | . . . . . Exploration Rate (%) 34 | 2 10 94 19 45 Regions Visited 4 Branch Regions 2 Pre-discovered Areas 1 | . . . 1 . Known Exits Taken . | . . . . . Unknown Exits Taken 4 | 1 1 1 1 . Scrap Searched 5 | . . 3 . 2 Spaces Dug . | . . . . . Terrain Destroyed . | . . . . . Melee . | . . . . . Projectile . | . . . . . AOE . | . . . . . Terrain Rammed . | . . . . . Walls Destroyed . | . . . . . Machines Disabled . | . . . . . Actions | -11 -10 -10 -9 -9 --------- Run | Scr Mat Min Mat Min Total 1070 | . 28 639 200 203 Wait 8 | . . 3 5 . Move 959 | . 26 607 157 169 Hop . | . . . . . Pick Up 20 | . 1 9 7 3 Fast Attach . | . . . . . Attach 7 | . 1 . 2 4 Detach . | . . . . . Swap 4 | . . 2 2 . Drop 9 | . . 5 3 1 Fire 62 | . . 13 24 25 Melee . | . . . . . Ram . | . . . . . Kick 1 | . . . . 1 Crush . | . . . . . Escape Stasis . | . . . . . Rewire . | . . . . . Trap . | . . . . . Miscellaneous . | . . . . . Route ------- -11/Scrapyard -10/Materials -10/Mines (discovered 2 exits: *Mat x2) -9/Materials (discovered 3 exits: Mat x2 / [*Min]) -9/Mines (discovered 2 exits: *Mat x2) History --------- Turn | Location | Event 1 | -11/Scrapyard | Discovered new exit (range 0) 1 | -11/Scrapyard | Entered Materials 16 | -10/Materials | Discovered new exit (range 15) 35 | -10/Materials | Entered Mines 121 | -10/Mines | Joined a pair of Derelicts in attacking an 0b10 outpost 188 | -10/Mines | A weapon hastily lodged in a ceiling crevice suddenly fell to the ground 311 | -10/Mines | Build established: Mutant 343 | -10/Mines | Found a damaged Exp. Sensor Array with a note attached 347 | -10/Mines | Found Prototype Device 439 | -10/Mines | Learned 4 Materials zone layouts 445 | -10/Mines | Discovered new exit (range 6) 611 | -10/Mines | Discovered new exit (range 14) 766 | -10/Mines | Entered Materials 766 | -9/Materials | Evolved 2 slots: Utility x2 767 | -9/Materials | Identified exit to Materials 1010 | -9/Materials | Discovered new exit (range 14) 1034 | -9/Materials | Entered Mines 1125 | -9/Mines | Discovered exit to Materials (range 8) 1202 | -9/Mines | Received a Rocket Launcher from a helpful Derelict 1236 | -9/Mines | Discovered exit to Materials (range 7) 1369 | -9/Mines | Assembled infested the area 1374 | -9/Mines | Assisted by a Guerilla fighting off Assembled 1397 | -9/Mines | Core integrity fell below 50% 1418 | -9/Mines | Self-destructed Last Messages --------------- response squad. 01374_ A derelict emerges from the shadows: "You need to get out of here! I've been tracking a group of Assembled to figure out where they're coming from, and they're closing on this area, come on!" 01393_ Aluminum Leg destroyed. 01398_ The unstable cave ceiling collapses. 01398_ Aluminum Leg destroyed. 01400_ The unstable cave ceiling collapses. 01400_ Imp. Ion Engine destroyed. 01401_ The unstable cave ceiling collapses. 01403_ K-01 Serf collects debris. 01406_ K-01 Serf destroyed. 01408_ The unstable cave ceiling collapses. 01411_ Hvy. Assault Rifle destroyed. 01411_ Aluminum Leg destroyed. 01412_ The unstable cave ceiling collapses. 01415_ U-05 Engineer lays Concrete. 01416_ The unstable cave ceiling collapses. 01416_ U-05 Engineer lays Concrete. Map ----- +----------------------------------------------------+ | ?# ### ####??????????????????????????????? | | ?# ###### #??????????????????????????????? | | ## #????# #??????????????????????????????? | | ## #????######## #??????????????????????????????? | | ## #???????????# #??????????????????????????????? | | ## #???????????# #??????????????????????????????? | | ## #???????????# #??????????????????????????????? | | #???????????# #??????????????????????????????? | | ####????#??????# #??????????????????????????????? | | ????? ## ?????# #??????????????????????????????? | | ???# ????# #?####?????????????????????????? | | ???# #### ## ##????????????????????????? | | ????# # #?????? ????????????????? | | ???????## #?????? ????????????????? | | ????????####### #????? ""???????????????? | | ??????????????## u #????# ""???????????????? | | ?????????????## ##??# ""???????????????? | | ???? ##?????# #?# ????????????????? | | ??? #### # #### #?????????????????? | | ??? #?? #??????????????????? | | ??? % # ### #???????????????????? | | ??? ##### # # # #????????????????????? | | ???? ????????# ##???????????????????? | | ?????????????## #= #########???????????? | | ?????????????# d #???????????? | | ?????????????## d @ ????????? | | ??????????????### #####???????????????? | | ????????????????## #???????????????????? | | ?????????????????### #???????????????????? | | ???????????????????## ## ##???????????????????? | | ??????????????????? ?# ###????????????????????? | | ?????????????????? ?# #??????????????????????? | | ????????????????? ?? ??????????????????????? | | ???????????????? ??"" ##?????????????????????? | | ??????????????? ??"" ??????????????????????? | | ?????????????? ##???"" ??????????????????????? | | ??????????????# #??????? ##?????????????????????? | | ???????????????##????????##??????????????????????? | | ?????????????????????????????????????????????????? | | ?????????????????????????????????????????????????? | | ?????????????????????????????????????????????????? | | ?????????????????????????????????????????????????? | | ?????????????????????????????????????????????????? | | ?????????????????????????????????????????????????? | | ?????????????????????????????????????????????????? | | ?????????????????????????????????????????????????? | | ?????????????????????????????????????????????????? | | ?????????????????????????????????????????????????? | | ?????????????????????????????????????????????????? | | ?????????????????????????????????????????????????? | +----------------------------------------------------+ Best States ------------- Heat Dissipation 28 Energy Generation 12 Energy Capacity 265 Matter Stores 300 Matter Capacity 300 Sight Range 16 Terrain Scan Density 10 Armor Coverage 150 Utility Shielding 33 Evasion (%) 55 Item Schematics ----------------- None Robot Schematics ------------------ None Fabricated ------------ Nothing Alien Tech Used ----------------- None Achievements -------------- None Challenges ------------ None Game ------ Seed RefineryEnergyRay Manual? 0 Play Time 00:14:14 Cumulative 71.1 hours Start 2021.08.15 @ 11:09:26 End 2021.08.15 @ 11:21:06 Sessions 1 Manual Loads 0 Difficulty Rogue Special Mode None Game No. 86 Rogue 86 Adventurer 0 Explorer 0 Win Type - Total 0 Types 0/0/0/0/0/0/0/0/0 Lore% 52 Gallery% 47 Achievement% 40 Wizard Run 0 Options --------- ASCII 1 Keyboard 0 Movement Vi Keybinds 0 Fullscreen 1 Font 18/SmallcapsGlow Map View 66x50 Tactical HUD 1 Map Filters NONE Filters NONE Steam 1 RUN: 73dcb389-5d0b-41e1-bf12-d01f7ef88224